bitfinex/quotes_ETHUSD_20240614
["timestamp","ask_amount","ask_price","bid_price","bid_amount"]
[1718347680059,0.59069857,3530.2,3529.3,0.05666159]
[1718347680375,0.28076986,3530.1,3529.3,0.05666159]
[1718347680683,0.49935777,3530.2,3529.0,0.05666237]
[1718347680890,0.49935777,3530.2,3529.1,1.43344514]
[1718347681181,2.217,3530.4,3529.2,0.0566624]
[1718347681182,0.06272597,3530.3,3529.2,0.0566624]
[1718347681335,0.06272597,3530.3,3529.4,1.705]
[1718347681680,0.06272597,3530.3,3529.5,1.43344514]
[1718347682040,0.06272597,3530.2,3529.1,9.70747075]
[1718347682365,0.06272597,3530.2,3529.2,1.43344514]
[1718347682566,0.06272597,3530.2,3529.3,0.05666038]
[1718347683059,0.06272597,3530.2,3529.3,1.49010552]
[1718347683269,0.06272597,3530.2,3529.3,1.43344514]
[1718347683437,0.06272597,3530.2,3529.3,2.47198749]
[1718347683854,0.06272597,3530.2,3529.4,1.49010459]
[1718347684054,0.06272597,3530.3,3529.4,1.49010459]
[1718347684363,0.06272597,3530.3,3529.4,1.43344514]
[1718347687141,2.27972597,3530.3,3529.4,1.43344514]
[1718347687341,2.27972597,3530.3,3529.3,2.74354235]
[1718347687342,0.06272597,3530.2,3529.1,7.45]
[1718347688577,2.217,3529.8,3529.1,7.45]
[1718347688878,0.06272597,3529.7,3528.8,1.705]
[1718347689085,0.06272597,3529.7,3528.8,3.13844514]
[1718347689398,0.06272597,3529.7,3528.6,7.45]
[1718347689578,0.06272597,3529.7,3528.6,8.88344514]
[1718347690369,0.06272597,3529.7,3528.6,7.45]
[1718347690571,2.217,3529.3,3528.6,7.45]
[1718347690809,0.06272597,3529.2,3528.6,7.45]
[1718347691100,0.06272597,3529.2,3528.7,0.05845051]
[1718347691327,0.06272597,3529.2,3528.6,7.45]
[1718347691605,0.06272597,3529.2,3528.8,0.05838397]
[1718347691817,0.06272597,3529.2,3528.7,0.05845051]
[1718347691964,0.06272597,3529.2,3527.9,2.4593]
[1718347691965,0.29069857,3529.2,3528.9,0.05831742]
[1718347692280,0.29069857,3529.2,3527.9,9.155]
[1718347692475,0.29069857,3529.2,3529.0,0.05843943]
[1718347692689,3.06676986,3529.1,3527.9,7.45]
[1718347692915,0.06272597,3529.0,3527.9,7.45]
[1718347693377,3.0,3528.9,3527.9,7.45]
[1718347693712,2.217,3528.4,3527.9,7.45]
[1718347694016,0.06272597,3528.3,3527.9,7.45]
[1718347694307,0.06272597,3528.3,3527.4,1.705]
[1718347694539,0.06272597,3528.2,3527.2,7.45]
[1718347695710,2.217,3527.9,3527.2,7.45]
[1718347695874,0.06272597,3527.8,3527.2,7.45]
[1718347697119,0.06272597,3527.7,3527.2,7.45]
[1718347699546,0.06272597,3527.7,3526.7,7.45]
[1718347699935,2.217,3527.4,3526.7,7.45]
[1718347700244,0.06272597,3527.3,3526.7,7.45]
[1718347700445,0.06272597,3527.2,3526.7,7.45]
[1718347700759,0.06272597,3527.2,3525.3,19.96]
[1718347700760,0.06272597,3527.2,3525.9,7.45]
[1718347700988,0.06272597,3527.2,3525.9,8.88344514]
[1718347701152,0.06272597,3527.2,3525.2,0.24159554]
[1718347701153,2.217,3526.8,3525.2,0.24159554]
[1718347701359,2.4932,3527.0,3525.1,7.45]
[1718347701360,2.217,3526.1,3525.3,1.49016519]
[1718347701761,2.217,3526.6,3525.3,1.49016519]
[1718347701962,0.06272597,3526.5,3525.4,1.705]
[1718347702161,0.06272597,3526.5,3525.5,1.49016491]
[1718347702386,0.06272597,3526.5,3525.6,2.02451649]
[1718347702560,8.193,3527.5,3525.8,1.705]
[1718347702760,2.217,3527.2,3526.0,1.705]
[1718347703095,2.217,3527.2,3526.1,3.19515443]
[1718347703249,2.217,3527.2,3526.2,0.31951544]
[1718347703448,2.217,3527.2,3526.3,0.05670934]
[1718347704572,0.06272597,3527.1,3526.2,0.31951544]
[1718347705860,0.06272597,3527.1,3526.0,0.05671144]
[1718347705861,0.06272597,3527.1,3526.3,0.05973462]
[1718347706088,0.06272597,3527.1,3526.0,0.05671145]
[1718347706287,0.06272597,3527.1,3526.1,0.05986791]
[1718347706597,0.06272597,3527.1,3526.2,0.05671497]
[1718347707088,0.06272597,3527.1,3526.3,0.05973462]
[1718347707383,0.06272597,3527.1,3526.3,0.21472409]
[1718347708590,2.217,3527.2,3526.4,0.05671127]
[1718347708960,0.06272597,3527.1,3526.5,0.05960135]
[1718347709161,0.06272597,3527.1,3526.1,1.705]
[1718347709361,0.06272597,3527.1,3526.6,0.05953472]
[1718347709677,0.2279726,3527.0,3526.7,0.05936369]
[1718347709857,0.06272597,3526.9,3526.1,1.43344514]
[1718347710082,0.06272597,3526.9,3526.2,0.05969686]
[1718347710318,0.06272597,3526.9,3525.8,7.45]
[1718347710452,0.06272597,3526.9,3526.3,0.05963022]
[1718347710658,0.06272597,3526.9,3525.8,7.45]
[1718347710882,2.217,3526.7,3525.9,0.05989681]
[1718347711089,0.06272597,3526.6,3525.9,0.05989681]
[1718347712161,0.06272597,3526.6,3525.8,7.45]
[1718347712486,0.06272597,3526.6,3525.9,0.05989681]
[1718347712792,0.06272597,3526.6,3525.8,7.45]
[1718347713094,0.59069857,3526.6,3525.9,0.05989681]
[1718347713271,0.59069857,3526.6,3525.8,7.45]
[1718347713472,0.59069857,3526.6,3525.9,0.05989681]
[1718347713768,2.89139857,3526.6,3525.8,7.45]
[1718347714002,2.89139857,3526.6,3526.0,0.05983016]
[1718347714159,0.51083986,3526.5,3525.9,0.05989681]
[1718347714366,2.217,3526.2,3525.4,7.45]
[1718347714602,0.06272597,3526.1,3526.0,0.05983016]
[1718347714904,1.73272597,3526.1,3526.0,0.06022453]
[1718347715068,1.73272597,3526.1,3525.4,7.45]
[1718347715271,1.73272597,3526.1,3525.5,0.06055783]
[1718347718195,1.67,3526.1,3525.5,0.06055783]
[1718347718599,1.67,3526.1,3525.5,0.11728338]
[1718347720413,0.06272597,3526.0,3525.5,0.06055783]
[1718347721582,0.06272597,3526.0,3524.9,9.155]
[1718347721783,0.06272597,3526.0,3525.6,0.06049117]
[1718347722014,3.0,3526.4,3525.0,1.14184]
[1718347722015,1.67,3525.7,3525.0,1.14184]
[1718347722215,0.06272597,3525.6,3525.0,1.14184]
[1718347724399,1.67,3525.7,3525.0,1.14184]
[1718347728893,1.67,3525.7,3525.1,0.05673061]
[1718347729230,1.67,3525.7,3525.1,0.50590371]
[1718347732813,1.67,3525.7,3525.2,1.43344514]
[1718347733027,1.67,3526.4,3525.3,0.05672482]
[1718347733333,0.06272597,3526.3,3525.4,1.43344514]
[1718347733538,0.06272597,3526.3,3525.5,0.6074197]
[1718347736034,0.06272597,3526.3,3525.6,0.06084794]
[1718347736544,2.4675,3527.2,3525.7,1.43344514]
[1718347736770,1.67,3526.8,3525.8,0.43738922]
[1718347737056,1.67,3526.8,3525.8,1.93154898]
[1718347738316,3.71590267,3527.1,3525.8,1.93154898]
[1718347738630,1.67,3526.8,3525.9,1.43344514]
[1718347738836,1.67,3526.8,3526.0,0.05671479]
[1718347739132,1.67,3526.8,3526.0,0.11716266]
[1718347739435,3.0,3527.1,3526.1,1.43344514]
[1718347739637,1.73272597,3527.0,3526.2,0.05671134]
[1718347739841,1.73272597,3527.0,3526.2,0.11702591]
[1718347740037,1.73272597,3527.0,3526.2,0.58354283]
[1718347740353,1.67,3527.0,3526.3,1.49015654]
[1718347740546,1.67,3527.0,3526.3,3.25540447]
[1718347740850,3.0,3528.3,3526.5,1.705]
[1718347741158,3.0,3528.3,3526.7,1.705]
[1718347741359,3.0,3528.3,3526.9,1.705]
[1718347741643,2.4804,3528.6,3527.0,3.19514099]
[1718347741945,0.06272597,3527.9,3527.0,3.19765823]
[1718347742231,2.4804,3528.6,3527.1,4.11059316]
[1718347742232,1.67,3528.3,3527.1,4.11059316]
[1718347742419,0.06272597,3528.2,3527.3,1.705]
[1718347742673,0.06272597,3528.2,3527.4,2.04453938]
[1718347742831,0.06272597,3528.2,3527.4,2.103373]
[1718347743406,0.06272597,3528.2,3527.4,2.04668259]
[1718347743606,0.06272597,3528.2,3527.5,0.05669041]
[1718347743801,0.06272597,3528.2,3527.5,0.05876702]
[1718347744047,3.0,3528.9,3527.2,0.05669281]
[1718347744340,1.67,3528.4,3527.3,1.54894303]
[1718347744503,1.67,3528.4,3527.3,3.25394303]
[1718347744825,1.67,3528.4,3527.4,2.2652843]
[1718347745007,1.67,3528.4,3527.5,3.19513329]
[1718347745340,1.67,3528.4,3527.5,3.25380757]
[1718347746841,1.67,3528.8,3527.5,3.25380757]
[1718347748019,0.06272597,3528.7,3527.5,3.25380757]
[1718347748221,1.67,3528.8,3527.7,1.705]
[1718347748544,1.67,3528.8,3527.8,3.19691965]
[1718347748729,1.67,3528.8,3527.8,3.25360035]
[1718347749244,1.67,3528.8,3527.8,3.19691965]
[1718347749445,1.67,3528.8,3528.0,4.1519]
[1718347749747,1.67,3528.8,3528.1,1.54839856]
[1718347749917,0.06272597,3528.7,3528.1,0.05827478]
[1718347750823,1.67,3528.4,3527.4,2.4355]
[1718347751026,0.06272597,3528.3,3528.2,0.05820821]
[1718347751239,1.67,3528.8,3527.6,1.76168729]
[1718347751406,0.06272597,3528.7,3528.2,0.05820821]
[1718347751612,3.0,3529.0,3527.7,1.99650838]
[1718347751817,1.73272597,3528.9,3528.3,0.05814164]
[1718347752058,1.73272597,3528.9,3527.8,1.705]
[1718347752346,1.73272597,3528.9,3527.9,1.49185307]
[1718347753438,1.73272597,3528.9,3527.9,1.8678447]
[1718347754637,1.73272597,3528.9,3528.0,0.05668051]
[1718347754836,1.73272597,3528.9,3528.0,1.43344514]
[1718347755033,3.0,3529.3,3527.9,0.43439956]
[1718347755034,3.0,3529.3,3528.1,5.50504249]
[1718347755237,0.06272597,3529.2,3528.1,5.50504249]
[1718347756152,0.06272597,3529.2,3528.1,5.44836198]
[1718347757863,1.67,3528.9,3528.1,5.44836198]
[1718347758030,0.06272597,3528.8,3528.1,5.44836198]
[1718347758355,0.06272597,3528.8,3528.1,5.93538134]
[1718347758572,1.67,3528.9,3528.2,0.11420358]
[1718347759723,3.0,3529.4,3528.2,0.05752429]
[1718347759958,1.67,3529.0,3528.2,0.05752429]
[1718347760148,1.67,3529.0,3528.2,0.0450317]
[1718347760552,0.07084833,3528.9,3528.2,0.10171036]
[1718347762058,1.67,3529.0,3528.2,0.10171036]
[1718347762259,0.0708483,3528.9,3528.2,0.0450317]
[1718347762747,1.67,3528.6,3527.6,2.2708]
[1718347762951,1.67,3528.6,3528.3,0.05519039]
[1718347763143,1.67,3528.6,3527.6,2.2708]
[1718347763351,1.67,3528.6,3528.4,0.05512383]
[1718347763677,0.07085732,3528.5,3527.6,2.2708]
[1718347763839,0.07085732,3528.5,3527.7,1.43344514]
[1718347764036,0.07085732,3528.5,3527.7,1.48903499]
[1718347765214,0.07085732,3528.5,3527.7,0.05558985]
[1718347765347,0.17408573,3528.4,3527.7,0.05558985]
[1718347765551,1.67,3528.2,3527.4,7.45]
[1718347765876,0.07086805,3528.1,3527.8,0.05552326]
[1718347766082,0.07086805,3528.1,3527.4,7.45]
[1718347766242,0.07086805,3528.1,3527.9,0.05554649]
[1718347766454,0.26236343,3528.1,3527.4,7.45]
[1718347766641,0.26236343,3528.1,3528.0,0.05552916]
[1718347766843,0.07086805,3528.1,3527.4,7.45]
[1718347767380,0.07086805,3528.1,3527.5,0.05586209]
[1718347767539,0.07086805,3528.1,3527.1,9.9153]
[1718347767739,0.07086805,3528.1,3527.6,0.0557955]
[1718347767973,0.07086805,3528.1,3527.1,9.9153]
[1718347768159,1.67,3527.8,3527.1,7.45]
[1718347768359,0.07087136,3527.7,3527.2,0.05606189]
[1718347772043,1.67,3527.4,3527.2,0.05606189]
[1718347772250,0.07088196,3527.3,3526.5,7.45]
[1718347772450,1.67,3527.4,3526.5,7.45]
[1718347772451,0.07088455,3527.2,3526.5,7.45]
[1718347774186,0.07088455,3527.2,3526.5,8.60706]
[1718347774387,0.07088455,3527.2,3526.5,7.45]
[1718347775885,0.07088455,3527.2,3526.3,2.4156]
[1718347776100,0.07088455,3527.2,3526.3,3.84904514]
[1718347777735,1.74088456,3527.4,3526.3,3.84904514]
[1718347778403,1.74088456,3527.4,3526.4,1.43344514]
[1718347778601,0.07088456,3527.4,3526.5,0.0567068]
[1718347778815,1.67,3527.5,3526.5,0.0567068]
[1718347779028,0.07088341,3527.4,3526.5,0.0567068]
[1718347779211,0.07088341,3527.4,3526.4,2.73384965]
[1718347780370,1.67,3527.1,3526.2,9.155]
[1718347780647,0.07088732,3527.0,3526.2,10.58844514]
[1718347780968,0.07088732,3527.0,3526.3,0.05666151]
[1718347785543,0.24497605,3527.0,3526.3,0.05666151]
[1718347786225,1.67,3526.7,3526.3,0.05666151]
[1718347786548,0.07089233,3526.6,3526.2,7.45]
[1718347786859,0.07089233,3526.6,3526.3,0.05731937]
[1718347787143,0.07089233,3526.6,3525.7,19.83]
[1718347787346,0.07089233,3526.6,3526.4,0.05725273]
[1718347787510,0.24498156,3526.6,3525.7,7.45]
[1718347787907,0.24498156,3526.6,3525.8,0.05765262]
[1718347788346,1.67,3526.3,3525.8,0.05765262]
[1718347788552,0.07090138,3526.2,3525.8,0.05765262]
[1718347790825,0.07090138,3526.2,3525.3,11.5682]
[1718347791013,0.07090138,3526.2,3525.9,0.05758596]
[1718347791214,0.07090138,3526.2,3525.4,2.59026514]
[1718347791410,0.07090138,3526.2,3526.0,0.05751931]
[1718347791885,0.07090138,3526.2,3525.4,1.43344514]
[1718347792163,0.07090138,3526.2,3526.1,0.05745266]
[1718347792341,0.47638152,3526.2,3525.3,9.155]
[1718347792537,0.47638152,3526.2,3526.1,0.05745266]
[1718347792726,0.47638152,3526.2,3525.3,8.88344514]
[1718347792926,0.47638152,3526.2,3525.3,7.45]
[1718347793353,0.47638152,3526.2,3525.4,0.05818605]
[1718347794026,0.07090138,3526.2,3525.4,0.05818605]
[1718347796231,1.67,3526.4,3525.5,1.43344514]
[1718347796435,0.07089922,3526.3,3525.5,1.49156452]
[1718347797249,0.07090116,3526.2,3525.5,0.05811938]
[1718347797460,0.07090116,3526.2,3525.3,7.45]
[1718347797635,0.07090116,3526.2,3525.6,0.05805271]
[1718347797838,0.07090116,3526.2,3525.3,7.45]
[1718347798183,0.07090116,3526.2,3525.7,0.05798605]
[1718347798342,0.07090655,3526.3,3525.3,7.45]
[1718347798542,0.07090655,3526.2,3525.8,0.05791939]
[1718347798841,0.07090655,3526.2,3525.4,0.745]
[1718347799144,0.07090655,3526.2,3525.5,0.05811938]
[1718347800679,1.67,3526.5,3525.6,1.49017037]
[1718347800851,1.67,3526.5,3525.7,0.05798605]
[1718347801046,0.07090029,3526.4,3525.7,0.11470628]
[1718347803891,0.07090029,3526.4,3525.7,0.05798605]
[1718347805067,0.696,3525.8,3525.7,0.05798605]
[1718347805266,0.696,3525.8,3525.4,1.705]
[1718347805551,0.696,3525.8,3525.5,0.05764593]
[1718347806125,0.696,3525.6,3525.5,0.05764593]
[1718347806579,0.696,3525.6,3525.3,7.45]
[1718347806777,0.07090914,3526.0,3525.5,0.05764593]
[1718347807012,0.07090914,3526.0,3525.4,0.0577126]
[1718347807013,1.99316005,3526.0,3525.4,0.0577126]
[1718347807157,1.99316005,3526.0,3525.6,0.05757926]
[1718347807355,1.99316005,3526.0,3525.5,0.05764593]
[1718347807659,1.99316005,3526.0,3525.6,0.05757926]
[1718347807872,1.99316005,3526.0,3525.3,7.45]
[1718347808156,1.99316005,3526.0,3525.4,0.0577126]
[1718347809211,0.44447601,3525.9,3525.4,0.0577126]
[1718347809414,1.67,3525.6,3525.4,0.0577126]
[1718347809573,0.07091409,3525.5,3525.3,7.45]
[1718347810900,0.07091409,3525.5,3525.4,0.0577126]
[1718347811075,0.07091409,3525.5,3524.7,9.155]
[1718347811427,0.07091409,3525.5,3524.8,1.49155785]
[1718347811631,0.07091409,3525.5,3524.8,0.05811271]
[1718347811921,0.07091409,3525.5,3524.4,9.8334]
[1718347812225,0.07091409,3525.5,3524.9,0.05804602]
[1718347812536,0.07091409,3525.5,3525.0,0.05797933]
[1718347812974,0.07091409,3525.5,3524.4,9.8334]
[1718347813170,0.07091409,3525.5,3525.1,0.05791264]
[1718347813371,0.07091409,3525.5,3524.4,11.00858514]
[1718347813566,0.07092513,3525.5,3525.2,0.05784596]
[1718347813773,1.67,3525.7,3525.2,0.05784596]
[1718347814078,0.07092026,3525.6,3524.5,1.49018524]
[1718347814277,0.07092026,3525.6,3524.6,0.47407408]
[1718347814492,0.07092026,3525.6,3524.7,0.05673623]
[1718347814698,0.07092026,3525.6,3524.8,0.05830708]
[1718347823694,0.07092026,3525.6,3524.6,1.8492731]
[1718347823896,0.07092026,3525.6,3524.7,0.05837378]
[1718347824084,0.28945989,3525.6,3524.7,0.05837378]
[1718347825501,1.67,3525.3,3524.7,0.05837378]
[1718347826844,0.21853963,3525.6,3524.7,0.05837378]
[1718347827008,0.696,3524.8,3524.7,0.05837378]
[1718347832732,0.696,3524.8,3524.7,0.05861454]
[1718347832946,0.696,3524.8,3524.2,1.705]
[1718347833112,0.696,3524.4,3524.2,3.13844514]
[1718347834135,0.696,3524.4,3523.9,4.1946]
[1718347834339,0.696,3524.4,3524.0,1.43344514]
[1718347835300,0.07093131,3525.1,3523.9,5.35906]
[1718347835301,0.696,3524.2,3523.9,2.86946]
[1718347835554,0.696,3524.2,3523.9,3.13844514]
[1718347838801,2.4352,3524.9,3523.6,7.45]
[1718347839002,0.62094384,3524.8,3523.6,7.45]
[1718347839220,0.696,3523.7,3523.6,7.45]
[1718347839510,0.696,3523.8,3523.6,7.45]
[1718347840955,0.696,3523.8,3523.7,0.05930785]
[1718347843629,0.696,3523.8,3523.1,7.45]
[1718347843829,0.696,3523.3,3523.1,1.43344514]
[1718347844018,0.696,3523.3,3522.8,11.4673]
[1718347844227,0.696,3523.1,3522.8,10.58844514]
[1718347846525,0.07095765,3524.1,3522.8,7.45]
[1718347846785,0.696,3522.9,3522.8,7.45]
[1718347846924,0.696,3522.9,3522.2,7.45]
[1718347847124,0.696,3522.5,3522.2,7.45]
[1718347847326,0.07096503,3523.4,3522.2,8.43842]
[1718347847630,0.696,3522.6,3522.2,0.98842]
[1718347847963,0.696,3522.6,3522.0,1.705]
[1718347848570,0.696,3522.6,3521.9,2.4342]
[1718347848571,0.696,3522.6,3522.1,3.13844514]
[1718347848777,0.07096503,3523.4,3522.1,3.13844514]
[1718347848778,0.696,3522.8,3522.2,1.49022014]
[1718347849071,0.696,3522.6,3522.2,1.49022014]
[1718347850181,0.696,3522.7,3522.2,1.49022014]
[1718347850474,2.4596,3524.2,3522.6,1.704]
[1718347850695,0.696,3523.5,3522.8,1.704]
[1718347850991,0.696,3523.6,3523.1,2.4118]
[1718347851267,0.28116747,3525.1,3523.1,2.4118]
[1718347851268,0.696,3524.3,3523.3,0.696]
[1718347851465,0.696,3524.3,3523.4,3.19419763]
[1718347851667,0.07094991,3524.5,3523.4,3.19419763]
[1718347851668,0.696,3524.1,3523.4,3.19419763]
[1718347851842,0.696,3524.1,3523.4,3.13744514]
[1718347852250,0.696,3523.9,3523.4,3.13744514]
[1718347852978,1.671,3524.6,3523.4,3.13744514]
[1718347853170,0.24513485,3524.5,3523.4,3.13744514]
[1718347853664,0.24513485,3524.5,3523.5,0.05675255]
[1718347853867,0.24513485,3524.5,3523.5,1.49019769]
[1718347854252,0.24513485,3524.5,3523.6,0.05675251]
[1718347854582,0.24513485,3524.5,3523.5,1.43344514]
[1718347855259,0.19161349,3524.4,3523.5,1.43344514]
[1718347855448,0.19161349,3524.4,3523.6,1.43344514]
[1718347855449,0.07094072,3524.3,3523.6,1.43344514]
[1718347855856,0.07094072,3524.2,3523.3,7.45]
[1718347856095,0.07094072,3524.2,3523.7,0.05832998]
[1718347856238,0.25773542,3524.1,3523.3,8.88344514]
[1718347856777,0.25773542,3524.1,3523.4,0.05853021]
[1718347857136,0.07094506,3524.0,3523.4,0.05853021]
[1718347859179,0.32868298,3524.1,3523.4,0.05853021]
[1718347859349,0.07094756,3524.1,3523.4,0.05853021]
[1718347860165,0.07094754,3524.2,3523.4,0.05853021]
[1718347864573,2.3148,3524.3,3523.4,0.11529074]
[1718347865280,0.07094491,3524.2,3523.4,0.11529074]
[1718347865592,0.07094514,3524.2,3523.4,0.87181981]
[1718347867508,0.07094514,3524.2,3523.4,0.11529074]
[1718347867871,0.07094514,3524.2,3523.4,0.05853021]
[1718347869608,1.671,3523.9,3523.3,7.45]
[1718347869909,0.07095387,3523.8,3523.4,0.05866961]
[1718347872516,0.07095376,3524.1,3523.4,0.05866961]
[1718347872681,1.00567538,3524.0,3523.4,0.05866961]
[1718347873014,0.07095375,3523.9,3523.0,7.45]
[1718347873393,0.07095375,3523.9,3523.1,0.05893958]
[1718347873592,2.3148,3524.3,3523.3,1.704]
[1718347873792,2.3191,3525.1,3523.5,1.704]
[1718347873980,2.3191,3525.1,3523.6,1.49019655]
[1718347873981,0.30284926,3525.0,3523.6,1.49019655]
[1718347874185,1.97384926,3525.0,3523.6,1.54877332]
[1718347875331,4.97384926,3525.0,3523.6,1.54877332]
[1718347876522,0.55,3524.9,3523.6,1.54877332]
[1718347876734,0.07093921,3524.8,3523.6,1.54877332]
[1718347876915,0.92332413,3524.7,3523.6,1.54877332]
[1718347877414,3.9229,3524.6,3523.6,0.05857677]
[1718347877728,1.671,3524.1,3523.1,2.4954]
[1718347877914,2.8019,3524.6,3523.2,1.49010384]
[1718347878084,1.671,3524.4,3523.3,0.05675616]
[1718347878314,0.0709452,3524.3,3523.4,0.05658606]
[1718347878752,0.0709452,3524.3,3523.4,0.1133419]
[1718347878941,0.0709452,3524.3,3523.4,0.6879606]
[1718347879249,0.0709452,3524.3,3523.4,2.12140574]
[1718347879921,0.0709452,3524.3,3523.4,2.0646499]
[1718347880822,0.0709452,3524.3,3523.5,0.05675518]
[1718347881244,0.0709452,3524.3,3523.6,0.05645257]
[1718347882968,0.0709452,3524.3,3523.4,2.00806384]
[1718347882969,0.0709452,3524.3,3523.7,0.05638583]
[1718347883268,0.0709452,3524.3,3523.4,1.43344514]
[1718347883269,0.47032972,3524.3,3523.4,1.43344514]
[1718347883470,0.47032972,3524.3,3523.8,0.05631909]
[1718347883635,0.47032972,3524.3,3523.1,2.4954]
[1718347883836,0.47032972,3524.3,3523.1,3.92884514]
[1718347884032,0.47032972,3524.3,3523.2,0.05671957]
[1718347884279,2.2769,3523.9,3523.2,0.05671957]
[1718347884565,0.0709561,3523.8,3523.0,7.45]
[1718347884746,0.0709561,3523.8,3523.1,0.05681242]
[1718347887863,0.0709561,3523.8,3522.6,9.7563]
[1718347888066,0.0709561,3523.8,3523.2,0.05685292]
[1718347888241,0.70188561,3523.7,3522.6,9.7563]
[1718347888576,0.07096188,3523.6,3522.6,9.7563]
[1718347888776,0.07096188,3523.6,3522.7,0.05718676]
[1718347890060,1.74196188,3523.6,3522.7,0.05718676]
[1718347890778,0.07096188,3523.6,3522.7,0.05718676]
[1718347891079,0.07096188,3523.6,3522.7,0.80790544]
[1718347892781,0.07096188,3523.6,3522.7,0.05718676]
[1718347892980,0.55,3523.5,3522.7,0.05718676]
[1718347893283,0.07096676,3523.4,3522.7,0.05718676]
[1718347893580,1.74196676,3523.4,3522.7,0.05718676]
[1718347903207,1.671,3523.0,3522.7,0.05718676]
[1718347903511,0.07097103,3522.9,3522.7,0.05718676]
[1718347903808,0.07097103,3522.9,3522.3,2.333]
[1718347903953,0.07097103,3522.9,3522.8,0.05737218]
[1718347904307,0.07097103,3522.9,3522.3,2.333]
[1718347904531,0.07097103,3522.9,3522.4,0.0576393]
[1718347904881,0.697,3522.5,3522.4,0.0576393]
[1718347905078,0.07097103,3522.9,3522.4,0.0576393]
[1718347905386,0.697,3522.6,3522.4,0.29670323]
[1718347905587,0.07097189,3523.2,3522.4,0.29670323]
[1718347905893,0.697,3522.7,3522.4,0.29670323]
[1718347906320,0.07097189,3523.2,3522.4,0.29670323]
[1718347906525,0.697,3522.8,3522.4,0.29670323]
[1718347906815,0.07097189,3523.2,3522.5,0.26297032]
[1718347907018,0.697,3522.9,3522.5,0.26297032]
[1718347907213,0.07097189,3523.2,3522.6,0.05775802]
[1718347907433,0.697,3522.9,3522.6,0.05775802]
[1718347907981,0.697,3522.8,3522.6,0.05775802]
[1718347910297,0.697,3523.2,3522.6,0.3288083]
[1718347910506,0.697,3523.2,3522.7,2.4508]
[1718347910884,0.697,3523.2,3522.8,0.05759837]
[1718347911096,0.697,3523.0,3522.7,2.4508]
[1718347911424,0.697,3523.0,3522.8,0.05759837]
[1718347911787,0.697,3523.0,3522.7,2.4508]
[1718347912017,0.697,3523.0,3522.8,0.05759837]
[1718347912384,0.697,3523.0,3522.7,2.69588]
[1718347912583,0.697,3523.0,3522.8,0.05759837]
[1718347913020,0.697,3523.0,3522.7,2.69588]
[1718347913186,0.697,3523.0,3522.9,0.05753159]
[1718347913386,0.697,3523.0,3522.7,2.69588]
[1718347913615,0.697,3523.0,3522.9,0.05753159]
[1718347913807,0.697,3523.2,3522.8,0.05759837]
[1718347913987,0.697,3523.2,3522.9,0.05753159]
[1718347914388,0.697,3523.2,3522.7,2.69588]
[1718347914588,0.697,3523.2,3522.8,0.05759837]
[1718347914812,0.697,3523.2,3522.7,2.69588]
[1718347915011,0.697,3523.2,3522.9,0.05753159]
[1718347915209,0.697,3523.2,3522.8,0.05759837]
[1718347915413,0.697,3523.2,3523.0,0.05746483]
[1718347915746,0.697,3523.2,3522.7,2.69588]
[1718347915922,0.697,3523.2,3522.8,0.05759837]
[1718347916112,0.697,3523.2,3522.7,2.69588]
[1718347916427,0.697,3523.2,3522.8,0.05759837]
[1718347916826,0.07096374,3523.7,3522.7,2.69588]
[1718347917022,0.697,3523.1,3522.9,0.05739533]
[1718347917228,0.697,3523.1,3522.8,0.0574621]
[1718347917432,0.07096374,3523.7,3523.0,0.05732856]
[1718347917727,0.07096374,3523.7,3522.9,0.05739533]
[1718347917929,0.697,3523.4,3523.0,0.05732856]
[1718347918097,0.697,3523.4,3522.8,0.05676787]
[1718347918295,0.697,3523.4,3522.9,0.33266012]
[1718347918798,0.07095818,3524.1,3523.0,0.05676564]
[1718347918999,0.07095818,3524.1,3522.9,0.3320283]
[1718347919000,0.697,3523.2,3522.9,0.3320283]
[1718347919228,0.697,3523.4,3523.0,0.05732856]
[1718347919612,0.697,3523.2,3523.0,0.05732856]
[1718347920938,0.697,3523.2,3522.4,7.45]
[1718347920939,0.07096419,3523.1,3522.4,7.45]
[1718347921138,0.697,3522.5,3522.4,7.45]
[1718347922445,0.697,3522.7,3522.4,7.45]
[1718347922615,0.697,3522.7,3522.3,2.3759]
[1718347923016,0.697,3522.6,3522.3,2.3759]
[1718347924006,0.07096939,3523.4,3522.3,2.3759]
[1718347924007,3.07096939,3523.4,3522.3,2.3759]
[1718347924211,0.697,3522.4,3521.9,9.9138]
[1718347924460,0.697,3522.2,3521.9,2.4638]
[1718347924741,7.38157694,3523.3,3521.5,7.45]
[1718347924742,0.697,3522.0,3521.6,2.4978]
[1718347925045,2.2877,3522.9,3521.6,2.4978]
[1718347925046,0.697,3522.2,3521.6,2.4978]
[1718347926039,0.07098072,3522.7,3521.7,0.05678458]
[1718347926344,2.2877,3522.9,3521.7,0.05678458]
[1718347926345,0.697,3522.2,3521.7,0.05678458]
[1718347926519,0.697,3521.9,3521.6,2.4978]
[1718347926709,0.697,3521.9,3521.6,3.66298]
[1718347926906,1.673,3522.6,3521.6,3.66298]
[1718347927138,0.07098072,3522.5,3521.6,2.4978]
[1718347929042,1.673,3522.1,3521.5,7.45]
[1718347929349,0.07098857,3522.0,3521.5,7.45]
[1718347929558,1.673,3521.7,3520.9,7.45]
[1718347929765,0.07099739,3521.6,3520.8,2.3931]
[1718347930814,0.07099739,3521.6,3520.9,0.05666671]
[1718347934530,1.673,3522.2,3521.0,3.19424685]
[1718347934734,2.4913,3522.0,3521.1,0.56440136]
[1718347934931,0.07099488,3521.9,3521.1,0.05699336]
[1718347935131,0.07099488,3521.9,3520.7,2.14834634]
[1718347935417,0.07099488,3521.9,3520.8,1.54743493]
[1718347935772,0.07099488,3521.9,3520.8,0.05719389]
[1718347935961,0.49452437,3521.9,3520.8,0.90914719]
[1718347936459,0.49452437,3521.9,3520.9,2.3852]
[1718347936460,0.07099488,3521.9,3520.9,2.3852]
[1718347936649,0.07099488,3521.9,3521.0,0.05679584]
[1718347936967,1.673,3522.0,3521.0,1.54730118]